bitfinex/quotes_ETHUSD_20230110
["timestamp","ask_amount","ask_price","bid_price","bid_amount"]
[1673319072723,2.81453273,1322.1,1322.0,3.460838]
[1673319072939,2.81453273,1322.1,1322.0,3.394838]
[1673319072940,1.12581309,1322.1,1322.0,3.394838]
[1673319073876,1.12581309,1322.1,1321.9,10.59242]
[1673319074087,1.12581309,1322.1,1321.9,7.63042]
[1673319074398,2.81453273,1322.1,1321.9,15.19565]
[1673319074773,2.81453273,1322.1,1321.9,22.76051]
[1673319075625,2.86453273,1322.1,1321.9,22.76051]
[1673319075859,2.86453273,1322.1,1321.9,27.447755]
[1673319076344,1.17581309,1322.1,1321.9,27.447755]
[1673319076888,1.17581309,1322.1,1321.9,19.882895]
[1673319077550,1.17581309,1322.1,1321.9,27.447755]
[1673319077719,1.12581309,1322.1,1321.9,27.447755]
[1673319078571,1.12581309,1322.1,1321.9,19.882895]
[1673319079019,1.12581309,1322.1,1321.9,19.848895]
[1673319079611,1.12581309,1322.1,1321.9,27.413755]
[1673319080392,1.12581309,1322.1,1321.9,19.848895]
[1673319081096,1.12581309,1322.1,1321.9,27.413755]
[1673319081438,2.81453273,1322.2,1321.9,27.413755]
[1673319081662,1.12581309,1322.2,1322.1,23.81697309]
[1673319081827,1.12581309,1322.2,1322.1,27.34587646]
[1673319082042,2.81453273,1322.3,1322.1,27.34587646]
[1673319082458,1.12581309,1322.2,1322.1,27.34587646]
[1673319082916,2.81453273,1322.3,1322.1,27.34587646]
[1673319084291,2.81453273,1322.3,1322.1,29.04987646]
[1673319086136,1.12581309,1322.3,1322.1,29.04987646]
[1673319088148,1.12581309,1322.3,1322.2,1.704]
[1673319088493,1.30277653,1322.4,1322.2,26.10028002]
[1673319088659,1.23677653,1322.4,1322.2,26.16628002]
[1673319089301,0.11096344,1322.4,1322.3,1.721]
[1673319089511,0.11296344,1322.4,1322.3,26.90874]
[1673319089772,1.23677653,1322.4,1322.3,31.14917807]
[1673319090141,0.11096344,1322.4,1322.3,31.14917807]
[1673319091510,0.11096344,1322.4,1322.3,28.64917807]
[1673319102917,0.11096344,1322.4,1322.3,28.64636725]
[1673319104444,0.11096344,1322.4,1322.3,21.08378725]
[1673319105349,0.11096344,1322.4,1322.3,24.88144789]
[1673319105500,0.11096344,1322.4,1322.3,32.44402789]
[1673319111426,0.11096344,1322.4,1322.3,0.066]
[1673319111673,0.11096344,1322.4,1322.2,7.62891]
[1673319111849,0.11096344,1322.4,1322.2,3.86366064]
[1673319112090,22.79717344,1322.4,1322.2,3.79766064]
[1673319112377,0.17696344,1322.4,1322.2,15.12628]
[1673319112533,0.11096344,1322.4,1322.2,22.75543]
[1673319115091,0.11096344,1322.4,1322.2,31.91484895]
[1673319115489,0.11096344,1322.4,1322.3,2.5]
[1673319115699,0.11096344,1322.4,1322.3,25.18774]
[1673319115945,0.11096344,1322.4,1322.3,25.25374]
[1673319116527,0.11096344,1322.4,1322.3,22.75374]
[1673319121403,0.11096344,1322.4,1322.3,26.7013689]
[1673319121794,0.51198111,1322.4,1322.3,26.7013689]
[1673319125155,0.51198111,1322.4,1322.3,28.5778546]
[1673319125823,0.51198111,1322.4,1322.3,26.7013689]
[1673319126213,0.51198111,1322.4,1322.3,28.57785483]
[1673319127173,0.51198111,1322.4,1322.3,32.37551547]
[1673319127909,1.63875682,1322.4,1322.3,32.37551547]
[1673319128123,0.51198111,1322.4,1322.3,32.37551547]
[1673319128535,1.63874774,1322.4,1322.3,32.37551547]
[1673319128745,0.50982592,1322.4,1322.3,32.37551547]
[1673319129279,0.50982592,1322.4,1322.3,35.19023749]
[1673319130567,0.50982592,1322.4,1322.3,36.90623749]
[1673319131619,1.28086895,1322.6,1322.3,54.89396724]
[1673319131832,1.28086895,1322.6,1322.5,48.11984398]
[1673319131833,0.08796629,1322.6,1322.5,48.11984398]
[1673319132039,0.08796629,1322.6,1322.5,62.58406206]
[1673319132249,0.08796629,1322.6,1322.5,65.81406206]
[1673319132482,0.84742687,1322.7,1322.6,2.5]
[1673319132629,0.84742687,1322.7,1322.6,35.38744859]
[1673319132844,0.84742687,1322.7,1322.6,35.68344859]
[1673319133191,0.84742687,1322.7,1322.6,41.35207749]
[1673319133529,0.84742687,1322.7,1322.6,38.53735547]
[1673319133743,0.84742687,1322.7,1322.6,44.35135674]
[1673319133905,0.84742687,1322.7,1322.6,44.91865674]
[1673319135093,0.84742687,1322.7,1322.6,46.05212888]
[1673319135302,0.84742687,1322.7,1322.6,44.91865674]
[1673319135718,0.84742687,1322.7,1322.6,44.35135674]
[1673319136652,0.13040539,1322.8,1322.6,44.35135674]
[1673319136850,0.13040539,1322.8,1322.7,22.73766064]
[1673319137066,0.13040539,1322.8,1322.7,51.15001759]
[1673319137413,0.13040539,1322.8,1322.7,22.96148695]
[1673319137741,0.13040539,1322.8,1322.7,32.18658]
[1673319137933,0.13040539,1322.8,1322.7,39.74687]
[1673319140268,0.13040539,1322.8,1322.7,43.54453064]
[1673319140488,0.13040539,1322.8,1322.7,45.49353064]
[1673319142107,0.13040539,1322.8,1322.7,45.49153064]
[1673319142317,0.13040539,1322.8,1322.7,45.49353064]
[1673319142561,0.13040539,1322.8,1322.7,51.7700507]
[1673319142989,0.13040539,1322.8,1322.7,44.2097607]
[1673319143212,0.13040539,1322.8,1322.7,51.7700507]
[1673319144343,0.13040539,1322.8,1322.7,47.74239006]
[1673319144576,0.13040539,1322.8,1322.7,41.46587]
[1673319147509,0.13040539,1322.8,1322.7,39.74687]
[1673319147722,0.13040539,1322.8,1322.7,3.066]
[1673319147914,0.13040539,1322.8,1322.6,0.066]
[1673319147915,1.82640539,1322.8,1322.6,0.066]
[1673319148134,1.82640539,1322.8,1322.5,35.56525184]
[1673319148135,11.10712539,1322.8,1322.5,15.08565184]
[1673319148345,13.57997082,1322.8,1322.5,15.08565184]
[1673319148650,21.13969082,1322.8,1322.5,1.08565184]
[1673319148861,21.13969082,1322.8,1322.5,4.01965184]
[1673319149083,12.44805662,1322.7,1322.5,11.58106184]
[1673319149252,12.51405662,1322.7,1322.5,11.64706184]
[1673319149500,9.51188222,1322.6,1322.5,11.64706184]
[1673319149810,9.57788222,1322.6,1322.5,26.76992184]
[1673319150656,9.57788222,1322.6,1322.5,30.20307202]
[1673319150857,0.066,1322.6,1322.5,30.20307202]
[1673319151065,8.87303114,1322.8,1322.5,30.20307202]
[1673319151326,8.87303114,1322.8,1322.5,48.00073266]
[1673319151327,8.86410539,1322.8,1322.5,48.00073266]
[1673319151540,8.86410539,1322.8,1322.6,3.79766064]
[1673319151771,8.86410539,1322.8,1322.7,22.68087]
[1673319152063,8.86410539,1322.8,1322.7,22.74687]
[1673319152064,0.19640539,1322.8,1322.7,22.74687]
[1673319152277,0.18040539,1322.8,1322.7,15.18658]
[1673319152435,0.18040539,1322.8,1322.7,0.066]
[1673319152647,0.18040539,1322.8,1322.6,7.56049]
[1673319152648,9.43612539,1322.8,1322.6,0.066]
[1673319152993,27.68039607,1322.8,1322.5,1.08565184]
[1673319153202,27.68039607,1322.8,1322.5,1.01965184]
[1673319153531,21.24757873,1322.8,1322.5,1.01965184]
[1673319154124,21.19757873,1322.8,1322.5,1.01965184]
[1673319154348,22.91857873,1322.8,1322.5,1.01965184]
[1673319154903,32.16701837,1322.8,1322.5,1.01965184]
[1673319155224,13.47152266,1322.7,1322.5,1.01965184]
[1673319155423,16.10581184,1322.7,1322.5,1.01965184]
[1673319155849,15.5157145,1322.7,1322.5,1.01965184]
[1673319156381,24.77364989,1322.7,1322.5,1.01965184]
[1673319156549,3.62690266,1322.6,1322.5,1.01965184]
[1673319156757,2.5,1322.6,1322.5,1.01965184]
[1673319156948,5.36310599,1322.6,1322.5,1.01965184]
[1673319157160,5.42910599,1322.6,1322.5,1.01616035]
[1673319157370,2.92910599,1322.6,1322.5,1.01616035]
[1673319157592,2.86310599,1322.6,1322.5,1.01616035]
[1673319157843,8.50993989,1322.7,1322.5,1.01616035]
[1673319157844,6.82122025,1322.7,1322.5,1.01616035]
[1673319158768,6.82122025,1322.7,1322.5,16.13898035]
[1673319158982,6.82122025,1322.7,1322.5,23.76641035]
[1673319159385,6.82122025,1322.7,1322.5,8.64352035]
[1673319159617,6.82122025,1322.7,1322.5,1.08216035]
[1673319159811,6.82122025,1322.7,1322.5,1.01616035]
[1673319160258,18.57025989,1322.7,1322.5,1.01616035]
[1673319160449,1.37,1322.6,1322.5,1.01616035]
[1673319160661,3.98435799,1322.6,1322.5,1.01616035]
[1673319161001,1.37,1322.6,1322.5,1.01616035]
[1673319162784,2.49690266,1322.6,1322.5,1.01616035]
[1673319163681,32.3055023,1322.6,1322.5,1.01616035]
[1673319163936,33.49100831,1322.6,1322.5,1.01616035]
[1673319164102,35.36572935,1322.6,1322.5,1.01616035]
[1673319164313,42.8623938,1322.6,1322.5,1.01616035]
[1673319165209,40.61665175,1322.6,1322.5,1.01616035]
[1673319165413,39.36252437,1322.6,1322.5,1.01616035]
[1673319165961,37.07992205,1322.6,1322.5,1.01616035]
[1673319167317,38.7631217,1322.6,1322.5,1.01616035]
[1673319168847,37.07992205,1322.6,1322.5,1.01616035]
[1673319169100,38.76273245,1322.6,1322.5,1.01616035]
[1673319169738,42.26273245,1322.6,1322.5,1.01616035]
[1673319170046,40.57992205,1322.6,1322.5,1.01616035]
[1673319170258,38.76265561,1322.6,1322.5,1.01616035]
[1673319170633,37.07992205,1322.6,1322.5,1.01616035]
[1673319171263,38.76215564,1322.6,1322.5,1.01616035]
[1673319172160,36.51628302,1322.6,1322.5,1.01616035]
[1673319172348,37.63783617,1322.6,1322.5,1.01616035]
[1673319172844,37.63783617,1322.6,1322.2,7.56309]
[1673319173062,1.37,1322.4,1322.2,7.62909]
[1673319173262,1.37,1322.4,1322.2,10.226286]
[1673319174043,25.76791,1322.5,1322.2,10.226286]
[1673319174212,25.76791,1322.5,1322.2,2.663196]
[1673319174415,25.76791,1322.5,1322.2,2.597196]
[1673319175160,25.76791,1322.5,1322.1,47.83679]
[1673319175371,18.2062,1322.5,1322.1,47.83679]
[1673319177995,10.6447,1322.5,1322.1,47.83679]
[1673319178206,10.0774,1322.5,1322.1,44.62079]
[1673319179566,10.0774,1322.5,1322.2,3.79766064]
[1673319179567,0.066,1322.5,1322.2,3.79766064]
[1673319179782,14.8127,1322.6,1322.3,36.68774]
[1673319180035,14.8127,1322.6,1322.3,40.55140064]
[1673319180836,15.50919429,1322.6,1322.3,40.55140064]
[1673319182830,0.76249429,1322.6,1322.4,3.79766064]
[1673319183075,2.93419213,1322.8,1322.6,0.066]
[1673319183076,1.31795854,1322.8,1322.6,0.066]
[1673319183266,1.25195854,1322.8,1322.7,7.56029]
[1673319183511,1.25195854,1322.8,1322.7,7.62629]
[1673319183725,1.25195854,1322.8,1322.7,22.74687]
[1673319184702,0.13040539,1322.8,1322.7,25.028157]
[1673319187404,0.13040539,1322.8,1322.7,42.82581764]
[1673319187590,0.13040539,1322.8,1322.7,38.26552764]
[1673319187796,0.13040539,1322.8,1322.7,35.26552764]
[1673319188327,0.13040539,1322.8,1322.7,20.14494764]
[1673319189112,0.13040539,1322.8,1322.7,16.347287]
[1673319189494,0.18040539,1322.8,1322.7,16.347287]
[1673319190692,0.18040539,1322.8,1322.7,23.907577]
[1673319190917,0.18040539,1322.8,1322.7,2.347287]
[1673319191073,0.18040539,1322.8,1322.7,2.281287]
[1673319191724,0.18040539,1322.8,1322.7,9.841577]
[1673319191914,0.18040539,1322.8,1322.7,9.907577]
[1673319192902,0.18040539,1322.8,1322.7,2.347287]
[1673319193221,0.18040539,1322.8,1322.7,2.281287]
[1673319193385,0.13040539,1322.8,1322.6,14.132]
[1673319194746,0.13040539,1322.8,1322.6,21.69278]
[1673319195382,0.13040539,1322.8,1322.6,0.132]
[1673319195383,0.13933114,1322.8,1322.6,0.132]
[1673319195611,0.13933114,1322.8,1322.6,0.066]
[1673319196361,0.13933114,1322.8,1322.6,15.18767]
[1673319196520,0.13040539,1322.8,1322.6,17.851027]
[1673319197416,0.13040539,1322.8,1322.6,31.851027]
[1673319198057,0.13040539,1322.8,1322.7,2.5]
[1673319198217,0.13040539,1322.8,1322.7,10.06029]
[1673319198427,0.13040539,1322.8,1322.7,10.12629]
[1673319198642,0.13040539,1322.8,1322.7,14.69715376]
[1673319199675,0.18040539,1322.8,1322.7,14.69715376]
[1673319200251,0.18040539,1322.8,1322.7,33.6153944]
[1673319200840,0.18040539,1322.8,1322.7,34.9733944]
[1673319200841,1e-08,1322.8,1322.7,34.9733944]
[1673319201057,1e-08,1322.8,1322.7,37.9733944]
[1673319201669,0.05,1322.8,1322.7,37.9733944]
[1673319203488,0.05,1322.8,1322.7,20.3528144]
[1673319203892,0.16843872,1322.9,1322.7,12.7925244]
[1673319204399,0.16843872,1322.9,1322.7,20.3527144]
[1673319204613,0.16843872,1322.9,1322.7,27.9130044]
[1673319204840,0.16843872,1322.9,1322.7,35.4732944]
[1673319205884,0.11843872,1322.9,1322.7,35.4732944]
[1673319208126,0.11843872,1322.9,1322.7,34.1152944]
[1673319210083,0.05,1322.8,1322.7,34.1152944]
[1673319212147,0.11843872,1322.9,1322.7,34.1152944]
[1673319212305,0.11843872,1322.9,1322.8,29.11944]
[1673319212523,0.11843872,1322.9,1322.8,31.87419763]
[1673319214710,0.11843872,1322.9,1322.8,24.31447763]
[1673319215351,0.11843872,1322.9,1322.8,16.75475763]
[1673319217244,1.23999187,1322.9,1322.8,16.75475763]
[1673319217488,0.11843872,1322.9,1322.8,16.75475763]
[1673319218440,15.23673872,1322.9,1322.8,14.066]
[1673319218597,8.86514187,1322.9,1322.8,0.066]
[1673319218808,10.54737546,1322.9,1322.7,3.0]
[1673319219052,2.98822546,1322.9,1322.7,3.0]
[1673319219228,4.04654493,1322.9,1322.8,0.87844685]
[1673319219439,7.36824197,1322.9,1322.8,0.87844685]
[1673319219688,5.18836935,1322.9,1322.8,0.87844685]
[1673319222423,9.42582231,1322.9,1322.8,0.87844685]
[1673319222639,1.86667231,1322.9,1322.8,0.87844685]
[1673319222868,4.04654493,1322.9,1322.8,0.87844685]
[1673319224066,3.04654493,1322.9,1322.8,0.87844685]
[1673319225375,0.80067231,1322.9,1322.8,0.87844685]
[1673319225692,3.04654493,1322.9,1322.8,0.87844685]
[1673319226268,0.80067231,1322.9,1322.8,0.87844685]
[1673319229353,1.12631793,1322.9,1322.8,0.87844685]
[1673319233158,2.81590288,1322.9,1322.8,0.87844685]
[1673319234147,2.81590288,1322.9,1322.7,15.18652]
[1673319234485,2.81590288,1322.9,1322.7,18.09753099]
[1673319235134,2.81590288,1322.9,1322.7,25.65782099]
[1673319235520,1.12649529,1322.8,1322.7,10.53727099]
[1673319235881,1.68958495,1322.9,1322.7,10.53727099]
[1673319236042,1.12649937,1322.8,1322.7,10.53727099]
[1673319236253,1.68958495,1322.9,1322.7,10.53727099]
[1673319236462,0.2480467,1322.8,1322.7,10.53727099]
[1673319236672,1.68958495,1322.9,1322.8,0.2480467]
[1673319239936,3.93545757,1322.9,1322.8,0.2480467]
[1673319242784,1.68958495,1322.9,1322.8,0.2480467]
[1673319243131,3.93545757,1322.9,1322.8,0.2480467]
[1673319244497,1.68958495,1322.9,1322.8,0.2480467]
[1673319246577,3.93545757,1322.9,1322.8,0.2480467]
[1673319248658,3.93545757,1322.9,1322.8,7.8077667]
[1673319248872,3.93545757,1322.9,1322.8,7.8737667]
[1673319249099,3.93545757,1322.9,1322.8,0.3140467]
[1673319249332,3.93545757,1322.9,1322.8,0.2480467]
[1673319249699,2.24587262,1322.9,1322.8,0.2480467]
[1673319249904,3.93714823,1322.9,1322.8,0.2480467]
[1673319250121,2.24587262,1322.9,1322.8,0.2480467]
[1673319250437,3.93713169,1322.9,1322.8,0.2480467]
[1673319251061,1.93713169,1322.9,1322.8,0.2480467]
[1673319252958,0.24587262,1322.9,1322.8,0.2480467]
[1673319253375,1.93773177,1322.9,1322.8,0.2480467]
[1673319253627,1.93773177,1322.9,1322.8,7.8077667]
[1673319253794,1.93773177,1322.9,1322.8,2.61340737]
[1673319254004,1.93773177,1322.9,1322.8,2.54740737]
[1673319254476,1.93773177,1322.9,1322.8,0.2480467]
[1673319254847,0.24587262,1322.9,1322.8,0.2480467]
[1673319255744,1.93782578,1322.9,1322.8,0.2480467]
[1673319256577,0.24587262,1322.9,1322.8,0.2480467]
[1673319258754,12.31087197,1322.9,1322.8,0.2480467]
[1673319258960,30.15006874,1322.9,1322.8,0.2480467]
[1673319259364,27.34021939,1322.9,1322.8,0.2480467]
[1673319259595,30.16006122,1322.9,1322.8,0.2480467]
[1673319260976,30.16006122,1322.9,1322.8,2.2480467]
[1673319262736,32.41488532,1322.9,1322.8,2.2480467]
[1673319262943,29.51411593,1322.9,1322.8,2.2480467]
[1673319263252,27.25929183,1322.9,1322.8,2.2480467]
[1673319263484,29.51408856,1322.9,1322.8,2.2480467]
[1673319264318,25.25929183,1322.9,1322.8,2.2480467]
[1673319265041,27.51398546,1322.9,1322.8,2.2480467]
[1673319265491,2.32069363,1322.9,1322.8,2.2480467]
[1673319265711,2.25469363,1322.9,1322.8,2.2480467]
[1673319266508,5.07453546,1322.9,1322.8,2.2480467]
[1673319266713,5.14053546,1322.9,1322.8,2.2480467]
[1673319267159,20.25883546,1322.9,1322.8,2.2480467]
[1673319267776,27.81798546,1322.9,1322.8,2.2480467]
[1673319268413,29.62521327,1322.9,1322.8,2.2480467]
[1673319271482,29.62521327,1322.9,1322.8,2.0]
[1673319271877,22.06606327,1322.9,1322.8,2.0]
[1673319272219,17.43924716,1322.9,1322.8,2.0]
[1673319272557,20.25908899,1322.9,1322.8,2.0]
[1673319273582,25.56329183,1322.9,1322.8,2.0]
[1673319275156,18.00414183,1322.9,1322.8,2.0]
[1673319277683,2.88584183,1322.9,1322.8,2.0]
[1673319277899,5.07376031,1322.9,1322.8,2.0]
[1673319278114,5.13976031,1322.9,1322.8,2.0]
[1673319279389,5.13999439,1322.9,1322.8,2.0]
[1673319281542,20.25829439,1322.9,1322.8,2.0]
[1673319281757,19.64627017,1322.9,1322.8,2.0]
[1673319282246,27.20542017,1322.9,1322.8,2.0]
[1673319282752,29.45953246,1322.9,1322.8,2.0]
[1673319283063,27.20542017,1322.9,1322.8,2.0]
[1673319283449,27.77252017,1322.9,1322.8,2.0]
[1673319287796,27.20542017,1322.9,1322.8,2.0]
[1673319288181,0.00211143,1322.8,1322.6,0.066]
[1673319288424,1.12710052,1322.7,1322.5,26.44698132]
[1673319288586,1.12710052,1322.7,1322.5,12.96827364]
[1673319289333,1.12710052,1322.7,1322.5,20.52966364]
[1673319289897,1.12710052,1322.7,1322.5,28.09109364]
[1673319290285,2.81775129,1322.7,1322.5,28.09109364]
[1673319290635,2.81775129,1322.7,1322.5,12.96827364]
[1673319290808,1.69065077,1322.7,1322.5,3.066]
[1673319291159,1.69065077,1322.7,1322.4,14.066]
[1673319291160,1.12708671,1322.6,1322.4,14.066]
[1673319291330,2.81773748,1322.6,1322.4,16.88057462]
[1673319291740,2.81773748,1322.6,1322.4,2.88057462]
[1673319291985,1.12708671,1322.6,1322.4,2.81457462]
[1673319292159,1.12708671,1322.6,1322.4,11.00635485]
[1673319292529,1.12708671,1322.6,1322.4,16.7579773]
[1673319292723,2.81773748,1322.6,1322.4,9.1959773]
[1673319292935,2.81773748,1322.6,1322.4,6.38140268]
[1673319293149,8.68797671,1322.6,1322.4,9.19596837]
[1673319293372,8.75397671,1322.6,1322.4,9.19313207]
[1673319293550,10.44462748,1322.6,1322.4,2.88056569]
[1673319293744,1.13576011,1322.5,1322.3,8.1511]
[1673319293942,2.82641088,1322.5,1322.3,8.1511]
[1673319294152,16.25890011,1322.5,1322.3,8.1511]
[1673319294412,27.29726088,1322.5,1322.3,8.1511]
[1673319294648,31.23722307,1322.5,1322.3,0.066]
[1673319294782,31.23722307,1322.5,1322.1,18.17510894]
[1673319294988,31.23722307,1322.5,1322.2,1.87659892]
[1673319294989,27.29726088,1322.5,1322.2,1.87659892]
[1673319295310,19.73555088,1322.5,1322.2,1.87659892]
[1673319295557,10.48319011,1322.5,1322.2,4.37659892]
[1673319295768,12.17384088,1322.5,1322.2,10.06314]
[1673319295980,10.48319011,1322.5,1322.2,12.94393738]
[1673319296389,1.20176011,1322.5,1322.2,20.50708738]
[1673319296707,23.82011011,1322.5,1322.2,2.88079738]
[1673319296902,23.88611011,1322.5,1322.2,7.21624696]
[1673319297093,16.32465011,1322.5,1322.2,7.59704434]
[1673319297302,18.01530088,1322.5,1322.2,7.59704434]
[1673319297566,8.76319011,1322.5,1322.2,17.66009434]
[1673319297778,16.32465011,1322.5,1322.2,7.59704434]
[1673319298143,8.76319011,1322.5,1322.2,7.59704434]
[1673319298357,16.32462011,1322.5,1322.2,4.78224696]
[1673319298607,23.88605011,1322.5,1322.2,2.5]
[1673319298822,16.32462011,1322.5,1322.2,2.5]
[1673319299213,16.32462011,1322.5,1322.2,7.19136704]
[1673319299423,16.32462011,1322.5,1322.2,2.566]
[1673319299632,16.32462011,1322.5,1322.2,2.5]
[1673319299843,16.32462011,1322.5,1322.2,6.29004198]
[1673319300072,16.32462011,1322.5,1322.2,3.85604198]
[1673319300253,16.32462011,1322.5,1322.1,24.03936479]
[1673319300468,16.32462011,1322.5,1322.2,1.87656145]
[1673319300669,16.32462011,1322.5,1322.2,11.93966145]
[1673319300878,16.32462011,1322.5,1322.2,10.1291]
[1673319301569,16.32462011,1322.5,1322.2,7.6291]
[1673319301878,8.76319011,1322.5,1322.2,10.1291]
[1673319302041,8.76319011,1322.5,1322.2,14.29572128]
[1673319302254,1.20176011,1322.5,1322.2,14.29572128]
[1673319302471,0.00892575,1322.5,1322.2,29.42202128]
[1673319302822,0.00892575,1322.5,1322.3,2.5]
[1673319303013,0.00892575,1322.5,1322.4,7.562]
[1673319303219,0.00892575,1322.5,1322.4,7.628]
[1673319303822,10.30123436,1322.6,1322.4,25.277281]
[1673319304031,9.1744,1322.6,1322.4,25.277281]
[1673319304292,8.6071,1322.6,1322.4,25.277281]
[1673319305339,8.6071,1322.6,1322.4,17.715281]
[1673319305504,7.48132816,1322.6,1322.4,17.715281]
[1673319309286,0.066,1322.6,1322.4,25.277281]
[1673319309526,1.12683436,1322.7,1322.4,39.277281]
[1673319312804,16.62809656,1322.8,1322.5,17.62229]
[1673319312962,16.62809656,1322.8,1322.5,20.85052981]
[1673319313955,16.62809656,1322.8,1322.5,18.35052981]
[1673319314272,1.12683436,1322.7,1322.5,18.35052981]
[1673319314441,16.62809656,1322.8,1322.5,18.35052981]
[1673319315322,1.12683436,1322.7,1322.5,25.91195981]
[1673319315613,15.5012622,1322.8,1322.5,29.70962045]
[1673319315614,1.19494579,1322.8,1322.5,29.70962045]
[1673319315784,1.19494579,1322.8,1322.5,31.41662045]
[1673319315785,1.12894579,1322.8,1322.5,31.41662045]
[1673319317331,1.12894579,1322.8,1322.5,34.2307859]
[1673319318611,1.12894579,1322.8,1322.5,31.41662045]
[1673319318984,1.12894579,1322.8,1322.5,34.23076446]
[1673319319198,0.00211143,1322.8,1322.6,2.5]
[1673319319417,0.00211143,1322.8,1322.6,6.17307645]
[1673319319629,0.00211143,1322.8,1322.7,17.62058]
[1673319319878,0.00211143,1322.8,1322.7,17.68658]
[1673319320045,0.00211143,1322.8,1322.7,22.74687]
[1673319325936,9.59797154,1322.9,1322.7,22.74687]
[1673319326145,9.59797154,1322.9,1322.7,25.76569583]
[1673319326973,9.59797154,1322.9,1322.7,18.20540583]
[1673319330589,9.59797154,1322.9,1322.7,25.76569583]
[1673319331731,9.59797154,1322.9,1322.7,31.27035647]
[1673319331732,0.066,1322.9,1322.7,31.27035647]
[1673319331900,1.2612305,1323.0,1322.7,31.27035647]
[1673319332134,0.13439614,1323.0,1322.7,31.27035647]
[1673319332636,0.13439614,1323.0,1322.8,3.79766064]
[1673319332848,0.13439614,1323.0,1322.9,22.67745]
[1673319333164,0.13439614,1323.0,1322.9,22.74345]
[1673319340941,1.2612305,1323.0,1322.9,22.74345]
[1673319341711,1.2612305,1323.0,1322.9,7.62515]
[1673319342306,1.2612305,1323.0,1322.9,0.066]
[1673319342516,2.95188127,1323.0,1322.8,19.19694334]
[1673319342776,2.95188127,1323.0,1322.8,11.63746334]
[1673319343372,2.95188127,1323.0,1322.8,19.19718334]
[1673319343724,1.2612305,1323.0,1322.8,25.03108326]
[1673319344051,2.95188127,1323.0,1322.8,9.91197326]
[1673319344419,1.2612305,1323.0,1322.8,9.91197326]
[1673319344635,1.2612305,1323.0,1322.8,17.47163326]
[1673319345264,2.95188127,1323.0,1322.8,25.03135326]
[1673319346328,2.95188127,1323.0,1322.8,15.3997927]
[1673319346542,2.95188127,1323.0,1322.8,7.8400727]
[1673319347783,1.12683436,1322.9,1322.8,7.8400727]
[1673319348621,1.12683436,1322.9,1322.8,15.3997927]
[1673319348833,1.12683436,1322.9,1322.8,7.8400727]
[1673319350331,4.07924794,1323.0,1322.8,7.8400727]
[1673319350332,3.01788127,1323.0,1322.8,10.13605597]
[1673319350556,1.12683436,1322.9,1322.8,7.8400727]
[1673319350745,1.12683436,1322.9,1322.8,15.39580235]
[1673319351081,1.12683436,1322.9,1322.8,7.83608235]
[1673319352763,1.12683436,1322.9,1322.8,15.39580235]
[1673319352975,2.95188127,1323.0,1322.8,22.95552235]
[1673319353288,1.2612305,1323.0,1322.8,26.5169572]
[1673319354405,2.95188127,1323.0,1322.8,26.5169572]
[1673319354836,1.2612305,1323.0,1322.8,26.5169572]
[1673319355028,2.95188127,1323.0,1322.8,26.5169572]
[1673319362239,1.2612305,1323.0,1322.8,26.5169572]
[1673319362415,2.95188127,1323.0,1322.8,26.5169572]
[1673319362614,2.95188127,1323.0,1322.8,30.31461784]
[1673319362832,1.2612305,1323.0,1322.8,33.12830695]
[1673319363071,1.2612305,1323.0,1322.8,30.31461784]
[1673319363284,1.2612305,1323.0,1322.8,33.12828358]
[1673319366502,1.2612305,1323.0,1322.8,30.31461784]
[1673319366938,1.2612305,1323.0,1322.8,33.12831378]
[1673319368075,1.2612305,1323.0,1322.8,34.83331378]
[1673319368478,2.95188127,1323.0,1322.8,34.83331378]
[1673319368653,2.95188127,1323.0,1322.8,34.83332682]
[1673319368969,1.2612305,1323.0,1322.8,34.83332682]
[1673319375912,1.2612305,1323.0,1322.8,48.83332682]
[1673319376072,1.2612305,1323.0,1322.8,46.01961784]
[1673319376503,1.2612305,1323.0,1322.9,24.67745]
[1673319376715,1.26058432,1323.0,1322.9,30.30121278]
[1673319376948,1.26058474,1323.0,1322.9,30.30121278]
[1673319377166,0.13439614,1323.0,1322.9,30.30121278]
[1673319377479,1.26057288,1323.0,1322.9,30.30121278]
[1673319378065,0.13439614,1323.0,1322.9,30.30121278]
[1673319378278,1.26048799,1323.0,1322.9,30.30121278]
[1673319378533,0.13439614,1323.0,1322.9,28.30121278]
[1673319378729,1.26049422,1323.0,1322.9,28.30121278]
[1673319378945,1.26047628,1323.0,1322.9,28.30121278]
[1673319381366,0.13439614,1323.0,1322.9,28.30121278]
[1673319381524,1.26042565,1323.0,1322.9,28.30121278]
[1673319383374,1.26042565,1323.0,1322.9,22.74345]
[1673319386182,1.82504691,1323.0,1322.9,0.066]
[1673319386519,1.82504691,1323.0,1322.8,33.19319299]
[1673319386728,1.82504691,1323.0,1322.9,7.55915]
[1673319386881,1.82504691,1323.0,1322.9,7.62515]
[1673319387847,4.07924794,1323.0,1322.9,7.62515]
[1673319388328,1.82504691,1323.0,1322.9,7.62515]
[1673319390614,1.82504691,1323.0,1322.9,15.1843]
[1673319391421,4.07924794,1323.0,1322.9,15.1843]
[1673319392213,1.82504691,1323.0,1322.9,15.1843]
[1673319392381,1.82504691,1323.0,1322.9,7.62515]
[1673319392940,2.95165871,1323.0,1322.9,7.62515]
[1673319393528,1.82504691,1323.0,1322.9,7.62515]
[1673319393757,2.95166588,1323.0,1322.9,7.62515]
[1673319393962,1.82504691,1323.0,1322.9,7.62515]
[1673319395039,2.95162228,1323.0,1322.9,7.62515]
[1673319396588,2.9516928,1323.0,1322.9,7.62515]
[1673319397863,1.82504691,1323.0,1322.9,7.62515]
[1673319398637,2.95168304,1323.0,1322.9,7.62515]
[1673319399240,2.95168304,1323.0,1322.9,0.066]
[1673319399478,2.95168304,1323.0,1322.8,40.75221299]
[1673319399911,1.12662294,1322.9,1322.8,40.75221299]
[1673319400071,1.12664155,1322.9,1322.8,55.16824988]
[1673319400275,1.82504691,1323.0,1322.8,55.16824988]
[1673319400603,1.82504691,1323.0,1322.8,43.75221299]
[1673319400829,2.95168441,1323.0,1322.8,43.75221299]
[1673319401353,1.82504691,1323.0,1322.8,43.75221299]
[1673319401956,1.12662283,1322.9,1322.8,43.75221299]
[1673319402219,1.1266254,1322.9,1322.8,48.44183258]
[1673319402376,1.12665169,1322.9,1322.8,48.4418622]
[1673319402587,1.12662841,1322.9,1322.8,48.4418622]
[1673319402798,1.12662279,1322.9,1322.8,48.4418622]
[1673319403005,1.82504691,1323.0,1322.8,48.4418622]
[1673319403217,1.12661692,1322.9,1322.8,28.63335299]
[1673319403483,4.14524794,1323.0,1322.8,30.50922218]
[1673319403643,4.07924794,1323.0,1322.8,28.63335299]
[1673319403855,4.07924794,1323.0,1322.8,24.83569235]
[1673319404298,1.12662102,1322.9,1322.8,35.2091915]